bitfinex/quotes_ETHUSD_20240713
["timestamp","ask_amount","ask_price","bid_price","bid_amount"]
[1720845193804,0.33516881,3125.9,3125.6,1.4161279]
[1720845193805,1.71115585,3125.7,3125.6,1.4161279]
[1720845195025,1.71115585,3125.7,3125.2,2.4742]
[1720845195306,1.33482465,3125.3,3125.2,2.4742]
[1720845195476,1.33482465,3125.3,3125.2,3.2902]
[1720845195803,1.37650709,3125.3,3125.2,3.2902]
[1720845196994,1.37650709,3125.3,3125.2,0.816]
[1720845197202,1.37646359,3125.3,3125.2,0.816]
[1720845200619,1.37670794,3125.3,3125.2,0.816]
[1720845201113,0.04168244,3125.3,3125.2,0.816]
[1720845201495,1.376803,3125.3,3125.2,0.816]
[1720845202015,1.37680094,3125.3,3125.2,0.816]
[1720845202318,0.04168244,3125.3,3125.2,0.816]
[1720845203113,1.37686617,3125.3,3125.2,0.816]
[1720845203482,0.04168244,3125.3,3125.2,0.816]
[1720845203884,1.37693902,3125.3,3125.2,0.816]
[1720845204085,0.04168244,3125.3,3125.2,0.816]
[1720845204280,1.37702246,3125.3,3125.2,0.816]
[1720845205291,0.04168244,3125.3,3125.2,0.816]
[1720845205939,1.71075383,3125.3,3125.2,0.816]
[1720845207528,1.71127784,3125.3,3125.2,0.816]
[1720845207691,1.71125197,3125.3,3125.2,0.816]
[1720845208042,1.71125092,3125.3,3125.2,0.816]
[1720845208219,0.04168244,3125.3,3125.2,0.816]
[1720845208398,2.00348218,3125.5,3125.2,0.816]
[1720845208596,2.00348218,3125.5,3125.4,0.816]
[1720845210091,2.00431011,3125.5,3125.4,0.816]
[1720845210904,2.0043045,3125.5,3125.4,0.816]
[1720845211423,2.04535855,3125.5,3125.4,0.816]
[1720845212217,0.04105405,3125.5,3125.4,0.816]
[1720845215231,0.51912576,3125.5,3125.2,0.816]
[1720845215421,2.34081862,3125.4,3125.2,0.816]
[1720845215614,2.38023283,3125.3,3125.2,0.816]
[1720845217800,2.38057565,3125.3,3125.2,0.816]
[1720845218003,2.38057987,3125.3,3125.2,0.816]
[1720845218205,0.03941421,3125.3,3125.2,0.816]
[1720845218404,2.34090628,3125.3,3125.2,0.816]
[1720845218605,2.34085309,3125.3,3125.2,0.816]
[1720845219120,2.38018981,3125.3,3125.2,0.816]
[1720845220339,0.03933672,3125.3,3125.0,0.816]
[1720845220508,2.34036908,3125.2,3125.0,0.816]
[1720845220841,0.03909501,3125.1,3125.0,0.816]
[1720845221540,2.34006123,3125.2,3125.0,0.816]
[1720845221908,0.03906894,3125.1,3125.0,0.816]
[1720845222309,2.34006123,3125.3,3125.0,0.816]
[1720845222521,0.03906894,3125.1,3124.6,6.90961]
[1720845222723,2.00559753,3125.0,3124.7,0.990961]
[1720845222932,2.04403133,3125.0,3124.7,3.231141]
[1720845223210,2.04403133,3125.0,3124.9,0.816]
[1720845224841,2.04368751,3125.0,3124.9,0.816]
[1720845226211,0.0384338,3125.0,3124.9,0.816]
[1720845226647,2.04368751,3125.0,3124.9,0.816]
[1720845228150,0.0384338,3125.0,3124.9,0.816]
[1720845228331,2.0432699,3125.0,3124.9,0.816]
[1720845228541,7.76520602,3125.5,3124.9,0.816]
[1720845228737,2.04332625,3125.0,3124.7,2.24018]
[1720845228922,2.00485005,3125.0,3124.9,0.816]
[1720845231519,7.43,3125.5,3124.9,0.816]
[1720845231849,2.00482079,3125.0,3124.7,2.24018]
[1720845232017,2.00482079,3125.0,3124.9,0.816]
[1720845233749,4.71445759,3125.2,3124.6,2.4291]
[1720845234044,4.71445759,3125.2,3124.9,0.816]
[1720845234249,2.00487182,3125.0,3124.9,0.816]
[1720845235032,2.00468488,3125.0,3124.9,0.816]
[1720845235650,2.04311431,3125.0,3124.9,0.816]
[1720845238557,2.04313824,3125.0,3124.9,0.816]
[1720845238759,2.04314682,3125.0,3124.9,0.816]
[1720845239057,2.04313929,3125.0,3124.9,0.816]
[1720845239251,0.03842943,3125.0,3124.9,0.816]
[1720845239458,2.00490924,3125.0,3124.9,0.816]
[1720845239779,0.03847183,3125.0,3124.9,0.816]
[1720845240144,2.33882817,3125.2,3124.9,0.816]
[1720845240344,0.03847183,3125.0,3124.6,2.4291]
[1720845240528,2.33882817,3125.2,3124.9,0.816]
[1720845240860,2.33882817,3125.2,3124.6,2.4291]
[1720845240861,2.33882817,3125.2,3125.1,0.816]
[1720845241028,2.3755,3125.4,3125.1,0.816]
[1720845241362,2.339676,3125.2,3125.1,0.816]
[1720845242055,3.59650008,3125.3,3125.1,0.816]
[1720845242759,2.339676,3125.2,3125.1,0.816]
[1720845242959,0.03867116,3125.2,3125.1,0.816]
[1720845243129,2.37834716,3125.2,3125.1,0.816]
[1720845243329,2.339676,3125.2,3125.1,0.816]
[1720845243646,2.37834716,3125.2,3125.1,0.816]
[1720845244460,2.3785871,3125.2,3125.1,0.816]
[1720845245429,2.3785871,3125.2,3125.0,0.816]
[1720845246047,2.97967822,3125.2,3124.6,2.4291]
[1720845246236,2.00577113,3124.9,3124.6,2.4291]
[1720845246437,2.00577113,3124.7,3124.4,2.442]
[1720845246648,0.03864302,3124.6,3124.4,2.442]
[1720845246853,2.04425112,3124.6,3124.5,0.816]
[1720845247762,2.0441026,3124.6,3124.5,0.816]
[1720845248745,0.03864302,3124.6,3124.5,0.816]
[1720845248946,0.03864302,3124.6,3124.5,1.589885]
[1720845249667,0.03864302,3124.6,3124.5,3.830235]
[1720845250749,0.03864302,3124.6,3124.4,2.442]
[1720845250946,2.0441026,3124.6,3124.5,0.816]
[1720845251157,0.03864302,3124.6,3124.5,0.816]
[1720845251844,0.03864302,3124.6,3124.5,3.816]
[1720845253379,0.03864302,3124.6,3124.5,0.816]
[1720845253573,0.03864302,3124.6,3124.4,4.68242]
[1720845253778,2.0448934,3124.6,3124.4,4.68242]
[1720845254067,2.04506126,3124.6,3124.5,0.816]
[1720845254437,0.03864302,3124.6,3124.5,0.816]
[1720845254642,2.00638015,3124.6,3124.5,0.816]
[1720845255470,2.04525836,3124.6,3124.5,0.816]
[1720845255667,0.03887821,3124.6,3124.5,0.816]
[1720845256076,0.03887821,3124.6,3124.5,3.78768]
[1720845258172,2.04549881,3124.6,3124.5,3.78768]
[1720845258373,2.04549881,3124.6,3124.5,5.49835]
[1720845258374,0.03887821,3124.6,3124.5,5.49835]
[1720845260479,2.0066206,3124.8,3124.5,5.49835]
[1720845260678,2.0066206,3124.8,3124.7,0.816]
[1720845260981,2.34105737,3125.0,3124.7,0.816]
[1720845261171,2.00724656,3124.8,3124.5,4.68235]
[1720845261376,2.34208487,3125.0,3124.7,0.816]
[1720845261558,2.00755114,3124.8,3124.5,4.68235]
[1720845261760,2.4859,3125.4,3124.7,0.816]
[1720845262078,2.00754725,3124.8,3124.5,4.68235]
[1720845262243,2.00754725,3124.7,3124.5,4.68235]
[1720845262445,2.00754725,3124.7,3124.6,0.816]
[1720845262655,2.04573108,3124.7,3124.6,0.816]
[1720845262878,2.04573108,3124.7,3124.5,4.68235]
[1720845263173,2.04573108,3124.7,3124.6,0.816]
[1720845264175,2.04580623,3124.7,3124.6,0.816]
[1720845264678,0.03818383,3124.7,3124.6,0.816]
[1720845264887,2.0458726,3124.7,3124.6,0.816]
[1720845265052,2.0458726,3124.7,3124.6,3.05628]
[1720845268183,2.34230357,3125.0,3124.6,3.05628]
[1720845268518,2.00772554,3124.7,3124.6,2.24028]
[1720845268652,2.00772554,3124.7,3124.6,3.05628]
[1720845268848,2.04677618,3124.7,3124.6,3.05628]
[1720845271786,2.04688753,3124.7,3124.6,3.05628]
[1720845272081,0.03905064,3124.7,3124.6,3.05628]
[1720845272270,2.00786179,3124.7,3124.6,3.830143]
[1720845272585,2.04691243,3124.7,3124.6,3.830143]
[1720845273281,2.04691243,3124.7,3124.6,3.05628]
[1720845275266,2.04696883,3124.7,3124.6,3.05628]
[1720845278593,0.03905064,3124.7,3124.6,3.05628]
[1720845278755,2.04707011,3124.7,3124.6,3.05628]
[1720845278959,2.00801947,3124.7,3124.6,3.05628]
[1720845279187,2.04617322,3124.7,3124.6,3.05628]
[1720845280586,0.03815375,3124.7,3124.6,3.05628]
[1720845280768,2.04621711,3124.7,3124.6,3.05628]
[1720845281082,2.00806336,3124.7,3124.6,3.05628]
[1720845281291,2.04621711,3124.7,3124.6,3.05628]
[1720845282185,2.04623209,3124.7,3124.6,3.05628]
[1720845282357,2.04623209,3124.7,3124.6,3.59234333]
[1720845282358,2.04624333,3124.7,3124.6,3.59234333]
[1720845282687,2.04625484,3124.7,3124.6,3.59234333]
[1720845284712,0.03815375,3124.7,3124.6,3.59234333]
[1720845284886,2.00805353,3124.7,3124.6,3.65634335]
[1720845285188,2.04579995,3124.7,3124.6,3.59234333]
[1720845285359,2.04579995,3124.7,3124.6,11.11782333]
[1720845285360,0.03774642,3124.7,3124.6,11.11782333]
[1720845285558,0.03774642,3124.7,3124.6,11.66782333]
[1720845285759,1.33890505,3124.8,3124.7,6.72063]
[1720845285967,1.33890505,3124.8,3124.7,10.94661933]
[1720845286576,1.3766867,3124.8,3124.7,10.94661933]
[1720845287888,1.3766867,3124.8,3124.7,8.70640933]
[1720845288085,1.71137432,3124.8,3124.7,4.48042]
[1720845288281,0.03778165,3124.8,3124.7,4.48042]
[1720845288503,2.0083112,3125.0,3124.9,2.24007]
[1720845288690,2.0083112,3125.1,3124.9,3.05607]
[1720845288893,2.318,3125.3,3125.0,0.816]
[1720845289086,2.00705148,3125.1,3124.9,2.24007]
[1720845289290,2.00705148,3125.1,3125.0,0.816]
[1720845290097,0.03804452,3125.1,3125.0,0.816]
[1720845292696,0.03804452,3125.1,3125.0,5.296]
[1720845293006,0.03804452,3125.1,3125.0,6.06051956]
[1720845293396,2.00648213,3125.3,3125.2,2.23985]
[1720845293579,2.00648213,3125.3,3125.2,3.05585]
[1720845293774,2.04468352,3125.3,3125.2,3.05585]
[1720845294477,0.03820139,3125.3,3125.2,3.05585]
[1720845295110,2.34055184,3125.5,3125.2,3.05585]
[1720845295319,2.0060805,3125.3,3125.2,2.23985]
[1720845295626,2.04428189,3125.3,3125.2,3.05585]
[1720845295923,2.04425274,3125.3,3125.2,3.05585]
[1720845299110,0.03820139,3125.3,3125.2,0.816]
[1720845302721,2.32610139,3125.3,3125.2,0.816]
[1720845302896,2.7927457,3125.3,3125.2,0.816]
[1720845303246,2.7927457,3125.3,3124.6,5.24024]
[1720845303247,2.2879,3125.2,3124.6,5.24024]
[1720845303407,1.67161868,3124.7,3124.6,2.24024]
[1720845303729,1.70936533,3124.7,3124.6,3.05624]
[1720845304192,0.03774665,3124.7,3124.6,3.05624]
[1720845304587,2.2879,3125.2,3124.6,3.05624]
[1720845304588,2.00601957,3124.9,3124.6,3.05624]
[1720845304990,2.00601957,3124.9,3124.8,0.816]
[1720845305211,2.2879,3125.2,3124.8,0.816]
[1720845305408,2.00601906,3124.9,3124.6,2.24024]
[1720845305691,2.00601906,3124.9,3124.8,0.816]
[1720845307732,4.36201906,3124.9,3124.8,0.816]
[1720845308241,2.356,3124.9,3124.8,0.816]
[1720845309223,4.36209917,3124.9,3124.8,0.816]
[1720845309830,2.356,3124.9,3124.8,0.816]
[1720845310538,4.36193838,3124.9,3124.8,0.816]
[1720845310899,2.356,3124.9,3124.8,0.816]
[1720845314462,2.00604755,3124.9,3124.8,0.816]
[1720845314827,2.00605294,3124.9,3124.8,0.816]
[1720845315526,2.00604157,3124.9,3124.8,0.816]
[1720845315728,4.69638183,3125.1,3124.8,0.816]
[1720845315927,4.69638183,3125.1,3125.0,0.816]
[1720845316127,2.356,3125.1,3125.0,0.816]
[1720845316618,4.69638183,3125.1,3125.0,0.816]
[1720845318359,2.356,3125.1,3125.0,0.816]
[1720845320941,4.69712786,3125.1,3125.0,0.816]
[1720845322386,2.356,3125.1,3125.0,0.816]
[1720845323840,2.34123374,3125.2,3125.0,0.816]
[1720845325141,2.34176144,3125.2,3125.0,0.816]
[1720845325873,2.34186262,3125.2,3125.0,0.816]
[1720845326041,2.34184515,3125.2,3125.0,0.816]
[1720845329183,2.4405,3125.4,3125.0,0.816]
[1720845329355,2.34312768,3125.2,3124.9,2.24006]
[1720845329555,2.34312768,3125.2,3125.1,0.816]
[1720845330492,2.38120027,3125.2,3125.1,0.816]
[1720845332097,2.43956132,3125.2,3125.1,0.816]
[1720845332589,0.09643364,3125.2,3125.1,0.816]
[1720845332801,2.34361896,3125.2,3125.1,0.816]
[1720845333099,2.4400345,3125.2,3125.1,0.816]
[1720845333266,2.4400743,3125.2,3125.1,0.816]
[1720845335592,2.44048505,3125.2,3125.1,0.816]
[1720845336052,0.09641554,3125.2,3125.1,0.816]
[1720845336257,2.4405283,3125.2,3125.1,0.816]
[1720845336457,2.34411276,3125.2,3125.1,0.816]
[1720845336758,2.4405283,3125.2,3125.1,0.816]
[1720845339095,2.44068161,3125.2,3125.1,0.816]
[1720845339795,0.09641554,3125.2,3125.1,0.816]
[1720845339979,2.34459669,3125.3,3125.1,0.816]
[1720845340185,7.43,3125.5,3125.2,0.816]
[1720845340186,2.34459669,3125.4,3125.2,0.816]
[1720845340483,2.34459669,3125.4,3125.3,0.816]
[1720845341473,7.43,3125.5,3125.3,0.816]
[1720845341795,2.34479323,3125.4,3125.3,0.816]
[1720845342162,7.43,3125.5,3125.3,0.816]
[1720845343182,2.344943,3125.4,3125.3,0.816]
[1720845343390,9.774943,3125.5,3125.3,3.05574]
[1720845343588,0.09290269,3125.4,3125.3,3.05574]
[1720845344499,2.10257528,3125.4,3125.3,3.05574]
[1720845344798,2.10257528,3125.4,3125.3,3.815462]
[1720845345291,2.10257528,3125.4,3125.3,6.055242]
[1720845345492,0.09290269,3125.4,3125.3,6.055242]
[1720845346262,0.09290269,3125.4,3125.3,8.363942]
[1720845346991,2.00946488,3125.6,3125.5,4.47928]
[1720845347197,2.10256984,3125.6,3125.5,6.1316502]
[1720845347599,0.09310496,3125.6,3125.5,6.1316502]
[1720845347797,0.09310496,3125.6,3125.5,8.4403502]
[1720845348368,2.00946488,3125.8,3125.7,2.23949]
[1720845348570,2.00946488,3125.8,3125.7,5.29498]
[1720845349597,2.00946488,3126.0,3125.9,2.23935]
[1720845349800,0.275,3126.4,3126.3,2.23906]
[1720845350103,0.275,3126.4,3126.3,5.36376]
[1720845350291,0.275,3126.4,3126.3,7.60282]
[1720845350493,1.94714507,3126.4,3126.3,8.363102]
[1720845350803,0.36544338,3126.4,3126.3,8.363102]
[1720845355573,0.36544338,3126.4,3126.3,6.054402]
[1720845356272,0.36544338,3126.4,3126.3,3.815342]
[1720845356469,0.36544338,3126.4,3126.3,3.05506]
[1720845356668,0.36544338,3126.4,3126.3,0.816]
[1720845356876,0.275,3126.4,3126.3,0.816]
[1720845357076,0.3659123,3126.4,3126.3,0.816]
[1720845357285,2.03408919,3126.4,3126.3,0.816]
[1720845360094,2.03317553,3126.4,3126.3,0.816]
[1720845362530,0.3659123,3126.4,3126.3,0.816]
[1720845362826,2.03311515,3126.4,3126.3,0.816]
[1720845363199,2.23642667,3126.4,3126.3,0.816]
[1720845365129,0.56922382,3126.4,3126.3,0.816]
[1720845365329,2.03342669,3126.4,3126.3,0.816]
[1720845366030,2.03340852,3126.4,3126.3,0.816]
[1720845369334,0.3659123,3126.4,3126.3,0.816]
[1720845369539,2.03353366,3126.4,3126.3,0.816]
[1720845370327,0.3659123,3126.4,3126.3,0.816]
[1720845371303,2.0335947,3126.4,3126.3,0.816]
[1720845371507,0.3659123,3126.4,3126.3,0.816]
[1720845372945,2.03386898,3126.4,3126.3,0.816]
[1720845373330,2.03386914,3126.4,3126.3,0.816]
[1720845373519,0.3659123,3126.4,3126.3,0.816]
[1720845379774,5.08319187,3126.4,3126.3,0.816]
[1720845379920,3.07972568,3126.4,3126.3,0.816]
[1720845380663,5.08319187,3126.4,3126.3,0.816]
[1720845383346,5.08474543,3126.4,3126.3,0.816]
[1720845383533,3.07972568,3126.4,3126.3,0.816]
[1720845385469,0.3659123,3126.4,3126.3,0.816]
[1720845386536,0.3659123,3126.4,3125.1,3.0]
[1720845386537,2.4035,3126.3,3125.5,4.64023]
[1720845386730,1.33836928,3125.6,3125.5,4.64023]
[1720845386929,1.33836928,3125.6,3125.5,5.45623]
[1720845387131,1.42798718,3125.6,3125.5,5.45623]
[1720845387556,0.0896179,3125.6,3125.5,5.45623]
[1720845388779,1.7625795,3125.6,3125.5,5.45623]
[1720845389977,0.0896179,3125.6,3125.5,5.45623]
[1720845390155,1.76353007,3125.6,3125.5,5.45623]
[1720845390471,0.0896179,3125.6,3125.5,0.816]
[1720845390975,2.00869461,3125.7,3125.5,0.816]
[1720845391140,0.08960487,3125.6,3125.5,0.816]
[1720845394041,2.09877461,3125.6,3125.5,0.816]
[1720845394238,0.08960487,3125.6,3125.5,0.816]
[1720845394438,2.34403136,3125.8,3125.5,0.816]
[1720845394754,2.8187845,3125.8,3125.7,0.816]
[1720845395075,2.34403136,3125.9,3125.7,0.816]
[1720845395370,2.34403136,3125.9,3125.8,0.816]
[1720845396141,2.34338999,3125.9,3125.8,0.816]
[1720845396959,2.34330381,3125.9,3125.8,0.816]
[1720845397977,2.42669108,3125.9,3125.8,0.816]
[1720845399243,2.42681015,3125.9,3125.8,0.816]
[1720845399884,0.08338727,3125.9,3125.8,0.816]
[1720845400388,2.4035,3126.1,3125.8,0.816]
[1720845400584,0.08338727,3125.9,3125.8,0.816]
[1720845400777,0.24035,3126.0,3125.8,0.816]
[1720845400955,0.08338727,3125.9,3125.8,0.816]
[1720845406805,2.4272871,3125.9,3125.8,0.816]
[1720845409106,2.42693911,3125.9,3125.8,0.816]
[1720845409491,2.93401802,3125.9,3125.8,0.816]
[1720845410007,0.59046618,3125.9,3125.8,0.816]
[1720845410207,2.93394519,3125.9,3125.8,0.816]
[1720845410382,2.42686628,3125.9,3125.8,0.816]
[1720845413605,2.42677376,3125.9,3125.8,0.816]
[1720845416481,0.08338727,3125.9,3125.8,0.816]
[1720845416887,5.1716253,3126.1,3125.8,0.816]
[1720845417082,2.42561463,3125.9,3125.8,0.816]
[1720845417309,2.34376896,3125.9,3125.6,0.816]
[1720845417514,2.4201,3125.8,3125.5,0.816]
[1720845417721,2.34359803,3125.6,3125.5,0.816]
[1720845417881,2.42536983,3125.7,3125.5,0.816]
[1720845418076,0.08169529,3125.6,3125.5,0.816]
[1720845419404,2.34359803,3125.8,3125.5,0.816]
[1720845419610,0.08172939,3125.6,3125.3,2.4322]
[1720845419906,2.34359803,3125.8,3125.5,0.816]
[1720845420093,2.34359803,3125.8,3125.7,0.816]
[1720845420625,2.42563302,3125.8,3125.7,0.816]
[1720845422624,2.91020632,3125.8,3125.7,0.816]
[1720845422919,2.4084,3125.7,3124.7,2.2573]
[1720845423124,2.4084,3125.7,3124.9,0.816]
[1720845423339,2.34342335,3125.2,3125.1,0.816]
[1720845423829,2.42475352,3125.2,3125.1,0.816]
[1720845424197,0.08133017,3125.2,3125.1,0.816]
[1720845424599,2.34342335,3125.3,3125.1,0.816]
[1720845424802,0.08133017,3125.2,3125.1,0.816]
[1720845425203,2.34342335,3125.3,3125.1,0.816]
[1720845425404,0.08133017,3125.2,3125.1,3.1775]
[1720845425786,2.34342335,3125.4,3125.1,3.1775]
[1720845425986,0.08126785,3125.2,3125.1,2.3615]
[1720845426323,0.08126785,3125.2,3125.1,3.1775]
[1720845426525,2.3426023,3125.4,3125.1,3.1775]
[1720845426681,2.3426023,3125.4,3125.3,0.816]
[1720845426885,0.59748557,3125.6,3125.3,0.816]
[1720845427081,0.59748557,3125.6,3125.5,0.816]
[1720845427684,2.76698151,3125.8,3125.5,0.816]
[1720845427884,0.08157828,3125.6,3125.1,4.60138]
[1720845428136,2.00792547,3125.4,3125.1,6.84125]
[1720845428338,1.67329856,3125.2,3125.1,4.60137]
[1720845428483,1.67329856,3125.2,3125.1,5.41737]
[1720845428690,1.75457078,3125.2,3125.1,6.183108]
[1720845429304,0.08127222,3125.2,3125.1,6.183108]
[1720845429708,2.00813718,3125.4,3125.2,2.23981]
[1720845429882,2.00836087,3125.4,3125.3,0.816]
[1720845431311,2.34308768,3125.6,3125.3,0.816]
[1720845431623,0.08144989,3125.4,3125.3,0.816]
[1720845431788,2.34308768,3125.5,3125.3,0.816]
[1720845431988,0.08144482,3125.4,3125.3,0.816]
[1720845433491,2.34415483,3125.5,3125.3,0.816]
[1720845433827,0.08144192,3125.4,3125.3,0.816]
[1720845436888,2.34483253,3125.5,3125.3,0.816]
[1720845437143,2.34483253,3125.5,3125.4,0.816]
[1720845437439,2.34480421,3125.5,3125.4,0.816]
[1720845438437,5.19529998,3125.7,3125.4,0.816]
[1720845438639,2.34517423,3125.5,3125.4,0.816]
[1720845438989,2.42669628,3125.5,3125.4,0.816]
[1720845439396,2.42675106,3125.5,3125.4,0.816]
[1720845440223,0.08152205,3125.5,3125.4,0.816]
[1720845440421,2.42677546,3125.5,3125.4,0.816]
[1720845440610,2.34525341,3125.5,3125.4,0.816]
[1720845440812,2.42677546,3125.5,3125.4,0.816]
[1720845443630,0.08152205,3125.5,3125.4,0.816]
[1720845443810,2.42676876,3125.5,3125.4,0.816]
[1720845444124,2.34524671,3125.5,3125.4,0.816]
[1720845444324,2.42676659,3125.5,3125.4,0.816]
[1720845446135,0.08151988,3125.5,3125.4,0.816]
[1720845446435,0.52773426,3125.5,3125.4,0.816]
[1720845446607,0.52773426,3125.5,3124.8,4.60159]
[1720845446608,0.60925414,3125.5,3125.1,0.816]
[1720845446803,2.34516923,3125.3,3125.1,0.816]
[1720845447019,0.60925414,3125.5,3125.1,0.816]
[1720845447210,0.60925414,3125.5,3124.8,2.3615]
[1720845447211,2.8516639,3125.5,3125.3,0.816]
[1720845447655,2.85154744,3125.5,3125.3,0.816]
[1720845452643,0.08151988,3125.5,3125.3,0.816]
[1720845452839,2.85154744,3125.5,3125.3,0.816]
[1720845453929,0.08151988,3125.5,3125.3,0.816]
[1720845454135,2.76963099,3125.5,3125.3,0.816]
[1720845454328,3.28914409,3125.5,3125.3,0.816]
[1720845454813,0.5195131,3125.5,3125.3,0.816]
[1720845455010,3.28914409,3125.5,3125.3,0.816]
[1720845455240,2.76963099,3125.6,3125.3,0.816]
[1720845455443,2.76963099,3125.5,3125.3,0.816]
[1720845457426,2.4255,3125.7,3125.3,0.816]
[1720845457940,2.77092759,3125.5,3125.3,0.816]
[1720845458140,3.29874349,3125.5,3125.3,0.816]
[1720845459907,0.5278159,3125.5,3125.3,0.816]
[1720845460112,2.77122293,3125.5,3125.3,0.816]
[1720845460947,2.77137817,3125.5,3125.3,0.816]
[1720845461314,0.08153998,3125.4,3125.3,0.816]
[1720845462544,2.77152927,3125.5,3125.3,0.816]
[1720845462750,0.35869291,3125.4,3125.3,0.816]
[1720845462915,0.08153998,3125.4,3125.3,0.816]
[1720845463815,2.77152927,3125.6,3125.3,0.816]
[1720845464015,0.08154361,3125.4,3125.3,0.816]
[1720845464216,2.77152927,3125.6,3125.3,0.816]
[1720845464530,0.08154361,3125.4,3125.3,0.816]
[1720845464739,2.7717925,3125.6,3125.3,0.816]
[1720845464919,0.51972925,3125.5,3125.3,0.816]
[1720845465114,0.08154361,3125.4,3125.3,0.816]
[1720845472951,2.77265217,3125.6,3125.3,0.816]
[1720845473251,0.08153781,3125.4,3125.2,2.2652]
[1720845473417,2.77265217,3125.6,3125.3,0.816]
[1720845473612,2.77265217,3125.6,3125.5,0.816]
[1720845474633,0.33513368,3125.6,3125.5,0.816]
[1720845474943,3.10836924,3125.6,3125.5,0.816]
[1720845475163,3.64745616,3125.6,3125.5,0.816]
[1720845475674,3.64745616,3125.6,3125.3,0.816]
[1720845475902,2.77331104,3125.5,3125.3,0.816]
[1720845476244,0.08154725,3125.4,3125.3,0.816]
[1720845479056,5.05606792,3125.5,3125.3,0.816]
[1720845479271,0.08154725,3125.4,3125.3,0.816]
[1720845480548,2.85546932,3125.4,3125.3,0.816]
[1720845480981,0.08154725,3125.4,3125.3,0.816]
[1720845481160,2.8554962,3125.4,3125.3,0.816]
[1720845481762,0.08154725,3125.4,3125.3,0.816]
[1720845482945,0.68379564,3125.4,3125.3,0.816]
[1720845483187,0.68379564,3125.4,3124.8,2.2652]
[1720845483392,2.77351087,3125.2,3125.0,0.816]
[1720845483600,0.08130465,3125.1,3125.0,0.816]
[1720845488353,0.60224839,3125.4,3125.0,0.816]
[1720845488354,2.77271195,3125.2,3125.0,0.816]
[1720845488555,0.08127418,3125.1,3125.0,0.816]
[1720845489379,2.85398613,3125.1,3125.0,0.816]
[1720845489586,0.08127418,3125.1,3125.0,0.816]
[1720845489882,2.85398613,3125.1,3125.0,0.816]
[1720845490062,3.1891787,3125.1,3125.0,0.816]
[1720845491065,0.41646675,3125.1,3125.0,0.816]
[1720845491291,3.18874555,3125.1,3125.0,0.816]
[1720845491481,0.41646675,3125.1,3125.0,0.816]
[1720845492506,3.18874555,3125.1,3125.0,0.816]
[1720845492655,0.41646675,3125.1,3125.0,0.816]
[1720845493391,3.15844131,3125.1,3124.1,2.3698]
[1720845493565,2.77230687,3124.9,3124.6,0.816]
[1720845493891,2.85332418,3124.8,3124.6,0.816]
[1720845494598,2.85237095,3124.8,3124.6,0.816]
[1720845496384,0.08101731,3124.8,3124.6,0.816]
[1720845496895,2.85237095,3124.8,3124.6,0.816]
[1720845497695,3.13760805,3124.8,3124.6,0.816]
[1720845497895,0.36625441,3124.8,3124.4,0.816]
[1720845498208,2.3448282,3124.5,3124.4,0.816]
[1720845498376,2.4250763,3124.5,3124.4,0.816]
[1720845498554,2.42449209,3124.5,3124.4,0.816]
[1720845498760,2.42449209,3124.5,3124.1,2.3698]
[1720845498961,2.00940186,3124.3,3124.1,2.3698]
[1720845499261,2.00940186,3124.3,3124.2,0.816]
[1720845500391,2.00914844,3124.3,3124.1,2.3698]
[1720845500595,2.00914844,3124.3,3124.2,0.816]
[1720845500907,2.34400651,3124.5,3124.2,0.816]
[1720845501089,2.00906394,3124.3,3124.1,2.3698]
[1720845501308,2.00906394,3124.3,3124.2,0.816]
[1720845501595,2.00873483,3124.3,3124.2,0.816]
[1720845501797,2.08798402,3124.3,3124.2,0.816]
[1720845504481,0.07924919,3124.3,3124.2,0.816]
[1720845505298,0.41444595,3124.3,3124.2,0.816]
[1720845511386,0.41444595,3124.3,3123.9,0.1135995]
[1720845511699,0.41444595,3124.3,3124.2,0.816]
[1720845511885,2.4213093,3124.3,3124.2,0.816]
[1720845513425,0.41444595,3124.3,3124.2,0.816]
[1720845514839,2.4213093,3124.3,3124.2,0.816]
[1720845515139,0.41444595,3124.3,3124.2,0.816]
[1720845517243,2.42128289,3124.3,3124.2,0.816]
[1720845518539,0.41444595,3124.3,3124.2,0.816]
[1720845518830,2.42168432,3124.3,3124.2,0.816]
[1720845519033,0.41444595,3124.3,3124.2,0.816]
[1720845519236,2.42215556,3124.3,3124.2,0.816]
[1720845520454,0.41444595,3124.3,3124.2,0.816]
[1720845524551,0.93500052,3124.3,3124.0,0.816]
[1720845524847,2.00927754,3124.1,3124.0,0.816]
[1720845525041,2.08829527,3124.1,3124.0,0.816]
[1720845525248,2.08829527,3124.1,3123.9,0.1135995]
[1720845525249,0.07901773,3124.1,3123.9,0.1135995]
[1720845525453,2.34359974,3124.2,3123.9,0.1135995]
[1720845525747,0.07901556,3124.1,3123.9,0.1135995]
[1720845525948,4.89575924,3124.1,3123.9,0.1135995]
[1720845526363,0.07901556,3124.1,3123.9,0.1135995]
[1720845529115,0.07901556,3124.1,3124.0,0.816]
[1720845529444,2.34467572,3124.2,3124.0,0.816]
[1720845529743,0.07901556,3124.1,3124.0,0.816]
[1720845530527,2.42360425,3124.1,3123.9,0.9295995]
[1720845531125,0.07901556,3124.1,3123.9,0.9295995]
[1720845532850,2.34361608,3124.2,3123.9,0.9295995]
[1720845533052,0.07896855,3124.1,3123.9,0.9295995]
[1720845534435,2.42258463,3124.1,3123.9,0.9295995]
[1720845536229,0.07896855,3124.1,3123.9,0.9295995]
[1720845536757,2.42258463,3124.1,3123.9,0.9295995]
[1720845536962,0.07896855,3124.1,3123.9,0.9295995]
[1720845537169,2.42258463,3124.1,3123.9,0.9295995]